Cogmind - Beta 10.1 *** ADVENTURER MODE // 2020.10.22 @ 16:17:40 Player: Cubemaster Result: Destroyed by Y-45 Defender with Beam Rifle Performance ------------- Evolutions (1) 500 Regions Visited (2) 400 Robots Destroyed (17) 85 Value Destroyed (312) 312 Prototype IDs (0) 0 Alien Tech Used (0) 0 Bonus (0) 0 TOTAL SCORE: 1297 Bonus ------- None Cogmind --------- Core Integrity 0/400 Matter 164/300 Energy 98/100 System Corruption 0% Temperature Cool (9) Movement Core (50) Location -9/Materials Parts ------- > --- POWER (1) -------- (None) > --- PROPULSION (3) --- (None) > --- UTILITY (3) ------ Seismic Analyzer > --- WEAPON (2) ------- (None) > --- INVENTORY (4) ---- Small Storage Unit Peak State ------------ > --- POWER ------------ Ion Engine > --- PROPULSION ------- Wheel Wheel > --- UTILITY ---------- Structural Scanner Improved Terrain Scanner Seismic Analyzer > --- WEAPON ----------- Grenade Launcher Mining Claw > --- INVENTORY -------- Small Storage Unit Small Laser Light Cannon [Rating: 9] Favorites ----------- Power Ion Engine Engine Ion Engine Propulsion Wheel Wheel Wheel Flight Unit Flight Unit Utility Seismic Analyzer Device Improved Terrain Scanner Storage Small Storage Unit Processor Seismic Analyzer Weapon Small Laser Energy Gun Small Laser Ballistic Gun Light Assault Rifle Ballistic Cannon Light Cannon Launcher Grenade Launcher Special Weapon Mining Laser Slashing Weapon Mining Claw Build | -11 -10 -9 ------- Run | Scr Mat Mat Slots Evolved 2 | . . 2 Power . | . . . Propulsion 1 | . . 1 Utility 1 | . . 1 Weapon . | . . . Parts Attached 22 | 8 9 5 Power 1 | 1 . . Engine 1 | 1 . . Core . | . . . Reactor . | . . . Propulsion 7 | 2 3 2 Treads . | . . . Leg . | . . . Wheel 6 | 2 3 1 Hover . | . . . Flight 1 | . . 1 Utility 5 | 3 1 1 Device 3 | 1 1 1 Storage 1 | 1 . . Processor 1 | 1 . . Hackware . | . . . Protection . | . . . Artifact . | . . . Weapon 9 | 2 5 2 Energy Gun 3 | 1 1 1 Energy Cannon . | . . . Ballistic Gun 1 | 1 . . Ballistic Cannon 1 | . . 1 Launcher 1 | . 1 . Special Weapon 2 | . 2 . Impact Weapon . | . . . Slashing Weapon 1 | . 1 . Piercing Weapon . | . . . Special Melee Weapon . | . . . Unidentified Prototypes . | . . . Parts Lost 13 | . 2 11 Power 1 | . . 1 Propulsion 4 | . . 4 Utility 2 | . . 2 Weapon 6 | . 2 4 Highest Loss Streak 9 | . 2 9 Average Slot Usage (%) 88 | . 97 66 Engine 10 | . 14 3 Wheel 24 | . 28 16 Device 15 | . 14 18 Processor 13 | . 14 11 Energy Gun 6 | . 7 3 Ballistic Gun 1 | . 1 . Launcher 6 | . 8 2 Special Weapon 4 | . 7 . Slashing Weapon 2 | . . 7 Naked Turns . | . . . Heaviest Build 12 | 12 11 12 Greatest Support 26 | 20 20 26 Greatest Overweight (x) . | . . . Average Overweight (x) . | . . . Largest Inventory Capacity 6 | 6 4 4 Average Capacity 4 | 5 4 4 Most Carried 4 | 4 4 3 Average Carried 2 | 1 3 1 Final Capacity 4 | 4 4 4 Final Carried 4 | 4 4 1 Class Distribution -------------------- 58% | Mutant 17% | Scavenger-Mutant 16% | Scavenger-Assassin 6% | Assassin Dominant Class ---------------- Mutant | -10/Materials Scavenger-Assassin | -9/Materials Resources | -11 -10 -9 ----------- Run | Scr Mat Mat Matter Collected 397 | 275 7 115 Remotely . | . . . Salvage Created 201 | 66 23 112 Parts 33 | 10 11 12 Haulers Intercepted . | . . . Recyclers Shooed . | . . . Parts Field Recycled . | . . . Retrieved Matter . | . . . Parts Self-Destructed . | . . . Prevented . | . . . Kills | -11 -10 -9 ------- Run | Scr Mat Mat Combat Hostiles Destroyed 11 | . 5 6 Guns 1 | . . 1 Cannons 4 | . . 4 AOE 6 | . 5 1 Classes Destroyed 6 | 1 4 1 Worker 1 | . 1 . Builder 2 | . 1 1 Tunneler 3 | 3 . . Swarmer 7 | . 4 3 Grunt 3 | . 1 2 Sentry 1 | . . 1 Best Kill Streak 3 | 3 3 3 Combat Bots Only 3 | . 2 3 Max Kills in Single Turn 2 | 1 2 2 Gunslinging . | . . . Exploded 1 | . 1 1 Melee . | . . . Uniques/NPCs Destroyed . | . . . Combat | -11 -10 -9 -------- Run | Scr Mat Mat Damage Taken 1117 | . 282 835 Core 474 | . 72 402 Absorbed by Shields . | . . . Core Remaining (%) 85 | 100 71 . Volleys Fired 43 | 5 18 20 Largest 2 | 2 2 1 Hottest 200 | 60 200 40 Shots Fired 61 | 10 31 20 Gun 20 | 10 6 4 Cannon 13 | . . 13 Launcher 14 | . 11 3 Special 14 | . 14 . Kinetic 18 | 5 . 13 Thermal 29 | 5 20 4 Explosive 14 | . 11 3 Electromagnetic . | . . . Robot Hit Streak 10 | 7 9 10 Robot Miss Streak 3 | . 1 3 Penetration Max . | . . . Secondary Targets . | . . . Shots Hit Robots 34 | 7 12 15 Core Hits 26 | 5 11 10 Critical Hits . | . . . Critical Kills . | . . . Critical Parts Destroyed . | . . . Melee Attacks 10 | . 5 5 Impact . | . . . Slashing 10 | . 5 5 Piercing . | . . . Sneak Attacks . | . . . Combat Hostiles . | . . . Follow-up Attacks . | . . . Damage Inflicted 1065 | 71 596 398 Guns 103 | 71 20 12 Cannons 170 | . . 170 Explosions 662 | . 504 158 Melee 46 | . . 46 Ramming 12 | . . 12 Kinetic 185 | 15 . 170 Thermal 160 | 56 92 12 Explosive 662 | . 504 158 Electromagnetic . | . . . Impact . | . . . Slashing 46 | . . 46 Piercing . | . . . Highest Corruption . | . . . Average Corruption . | . . . Corruption Purged . | . . . Overload Shots . | . . . Overflow Damage 45 | . 28 17 Projectiles . | . . . Explosions 28 | . 28 . Melee 17 | . . 17 Knockbacks . | . . . Impact . | . . . Kinetic . | . . . Secondary . | . . . Self-Inflicted Damage 51 | . 46 5 Shots 3 | . 3 . Rammed 4 | . . 4 Targets Rammed 4 | . . 4 Kicked . | . . . Crushed . | . . . Highest Temperature 263 | 40 263 13 Average Temperature 77 | 19 87 8 Received Heat Transfer 420 | . 141 279 Siege Activations . | . . . Robots Corrupted . | . . . Combat Hostiles . | . . . Parts Fried . | . . . Impact Corruptions . | . . . Robots Melted . | . . . Combat Hostiles . | . . . Parts Melted . | . . . Heat Transferred 350 | 125 200 25 Parts Sabotaged . | . . . Parts Stolen . | . . . Parts Stripped . | . . . Power Chain Reactions . | . . . Missiles Intercepted . | . . . Alert | -11 -10 -9 ------- Run | Scr Mat Mat Peak Influence 204 | 15 204 141 Initial 8 | . 8 1 Average 65 | 4 76 70 Maximum Alert Level 1 | . 1 . Low Security (%) 91 | 100 86 100 Level 1 8 | . 13 . Level 2 . | . . . Level 3 . | . . . Level 4 . | . . . Level 5 . | . . . High Security . | . . . Max Security . | . . . Squads Dispatched 1 | . . 1 Investigation . | . . . Extermination . | . . . Reinforcement 1 | . . 1 Assault . | . . . Garrison . | . . . Intercept . | . . . Construction Impeded . | . . . Haulers Reinforced . | . . . Stealth | -11 -10 -9 --------- Run | Scr Mat Mat Distress Signals 1 | . 1 . Communications Jammed . | . . . Distress Signals . | . . . Times Spotted 28 | . 11 17 Peak Tracking Total 11 | . 5 11 Tactical Retreats 2 | . 2 . Traps | -11 -10 -9 ------- Run | Scr Mat Mat Traps Triggered . | . . . Indirectly . | . . . Trap Hack Attempts . | . . . Triggered . | . . . Disarmed . | . . . Reprogrammed . | . . . Reused . | . . . Traps Extracted . | . . . Installed . | . . . Triggered . | . . . Machines | -11 -10 -9 ---------- Run | Scr Mat Mat Machines Disabled 5 | . 5 . Max in Single Turn 2 | . 2 . Machines Sabotaged . | . . . Garrisons Compromised . | . . . Overloaded Fab Kills . | . . . Fab Network Shutdowns . | . . . Hacking | -11 -10 -9 --------- Run | Scr Mat Mat Machines Accessed 4 | . 4 . Terminals 3 | . 3 . Fabricators . | . . . Repair Stations . | . . . Recycling Units 1 | . 1 . Scanalyzers . | . . . Garrison Access . | . . . Total Hacks 8 | . 8 . Successful 4 | . 4 . Failed 4 | . 4 . Catastrophic . | . . . Database Lockouts . | . . . Manual . | . . . Terminals 5 | . 5 . Fabricators . | . . . Repair Stations . | . . . Recycling Units 3 | . 3 . Scanalyzers . | . . . Garrison Access . | . . . Terminal Hacks 2 | . 2 . Record 1 | . 1 . Robot Analysis 1 | . 1 . Fabricator Hacks . | . . . Repair Station Hacks . | . . . Recycling Unit Hacks 2 | . 2 . Report Inventory 1 | . 1 . Retrieve Matter 1 | . 1 . Scanalyzer . | . . . Garrison Access Hacks . | . . . Unauthorized Hacks . | . . . Terminals . | . . . Fabricators . | . . . Repair Stations . | . . . Recycling Units . | . . . Scanalyzers . | . . . Garrison Access . | . . . Data Cores Recovered . | . . . Used . | . . . Hacking Detections 4 | . 4 . Full Trace Events . | . . . Feedback Events . | . . . Feedback Blocked . | . . . Robot Schematics Acquired . | . . . Robots Built . | . . . Matter . | . . . Time . | . . . Total Robot Build Rating . | . . . Part Schematics Acquired . | . . . Parts Built . | . . . Matter . | . . . Time . | . . . Total Part Build Rating . | . . . Parts Repaired . | . . . Time . | . . . Parts Recycled . | . . . Recycled Matter . | . . . Retrieved Matter . | . . . Retrieved Components . | . . . Parts Scanalyzed . | . . . Part Schematics Acquired . | . . . Parts Damaged . | . . . Bothacking | -11 -10 -9 ------------ Run | Scr Mat Mat Used RIF Installer . | . . . Robots Hacked . | . . . Non-combat . | . . . Combat . | . . . Robot Hacks Applied . | . . . Relay Couplers Released . | . . . Robots Rewired . | . . . Allies Hacked . | . . . Hacks Repelled . | . . . Allies | -11 -10 -9 -------- Run | Scr Mat Mat Total Allies . | . . . Largest Group . | . . . Highest-Rated Group . | . . . Highest-Rated Ally . | . . . Total Orders . | . . . Ally Attacks . | . . . Total Damage . | . . . Kills . | . . . Allies Corrupted . | . . . Allies Melted . | . . . Intel | -11 -10 -9 ------- Run | Scr Mat Mat Robot Analysis Total 1 | . 1 . Derelict Logs Recovered . | . . . Drone Launches . | . . . Drone Recoveries . | . . . Exploration | -11 -10 -9 ------------- Run | Scr Mat Mat Turns Passed 680 | 93 423 164 Spaces Moved 607 | 79 388 140 Core 10 | 3 . 7 Treads . | . . . Legs . | . . . Wheels 566 | 76 388 102 Hover . | . . . Flight 31 | . . 31 Fastest Speed 40 | 50 80 40 Average Speed 77 | 78 80 70 Slowest Speed 100 | 80 80 100 Overloaded Moves . | . . . Propulsion Burnouts . | . . . Robots Hopped . | . . . Cave-ins Triggered . | . . . Exploration Rate (%) 23 | 5 52 13 Regions Visited 2 Branch Regions . Pre-discovered Areas . | . . . Known Exits Taken . | . . . Unknown Exits Taken 2 | 1 1 . Scrap Searched . | . . . Spaces Dug 14 | . 13 1 Terrain Destroyed 70 | . 58 12 Melee 4 | . 3 1 Projectile 10 | . 10 . AOE 56 | . 45 11 Terrain Rammed . | . . . Walls Destroyed . | . . . Machines Disabled . | . . . Actions | -11 -10 -9 --------- Run | Scr Mat Mat Total 702 | 97 431 174 Wait . | . . . Move 605 | 78 387 140 Hop . | . . . Pick Up 12 | 6 6 . Fast Attach 7 | 5 . 2 Attach 7 | 2 2 3 Detach . | . . . Swap 8 | 1 7 . Drop 6 | . 6 . Fire 43 | 5 18 20 Melee 10 | . 5 5 Ram 4 | . . 4 Kick . | . . . Crush . | . . . Escape Stasis . | . . . Rewire . | . . . Trap . | . . . Miscellaneous . | . . . Route ------- -11/Scrapyard -10/Materials -9/Materials (discovered 1 exit: [*Sto]) History --------- Turn | Location | Event 31 | -11/Scrapyard | Discovered new exit (range 16) 94 | -11/Scrapyard | Entered Materials 392 | -10/Materials | Discovered new exit (range 16) 517 | -10/Materials | Entered another Materials area 517 | -9/Materials | Evolved 2 slots: Propulsion x1, Utility x1 593 | -9/Materials | Discovered new exit (range 5) 639 | -9/Materials | Core integrity fell below 50% 661 | -9/Materials | Core integrity fell below 20% 681 | -9/Materials | Destroyed by Y-45 Defender with Beam Rifle Last Messages --------------- Y-45 Defender destroyed. S-10 Pest destroyed. Acquired 37 matter. Acquired 15 matter. S-10 Pest destroyed. Acquired 6 matter. Imp. Terrain Scanner destroyed. Lgt. Cannon destroyed. Acquired 20 matter. Slammed into K-01 Serf. Acquired 6 matter. Slammed into Y-45 Defender. Structural Scanner destroyed. Com. Wheel destroyed. Slammed into Y-45 Defender. Acquired Flight Unit. Flying robots can pass through spaces occupied by others, even hostile robots. K-01 Serf destroyed. Flight Unit destroyed. Map ----- +----------------------------------------------------+ | ?????????????????????????????????????????????????? | | ?????????????????????????????????????????????????? | | ?????????????????????????????????????????????????? | | ?????????????????????????????????????????????????? | | ?????????????????????????????????????????????????? | | ?????????????????????????????????????????????????? | | ?????????????????????????????????????????????????? | | ?????????????????????????????????????????????????? | | ?????????????????????????????????????????????????? | | ?????????????????????????????????????????????????? | | ?????????????????????????? ?????????????????????? | | ?????????????????????????? #???????????????????? | | ?????????????????????????? #???????????????????? | | ?????????????????????????? #???????????????????? | | ?????????????????????????? #???????????????????? | | ????????????????????????## #???????????????????? | | ???????????????????????? ###?????????????????? | | ???????????????????????? ??????????????????? | | ???????????????????????? Y ???????????????????? | | ???????????????????????? ???????????????????? | | ???????????????????????? ????????????????????? | | ??????????????????#####?# =#????????????????????? | | ??????????????????? # %#????????????????????? | | ?????????????????????"" # #????????????????????? | | ??????????????????????? g +????????????????????? | | ????????????????????????#@ #????????????????????? | | ????????????????????????# #????????????????????? | | ????????????????????????# #????????????????????? | | ????????????????????????# #???????????????#????? | | ????????????????????????# #????#????????#????#?? | | ????????????????????????# #??????????#?#????#??? | | ????????????????????????# #??##??????????#?????? | | ?????????????????? ???# #### #???##???#???#??# | | ?????????????????? ???# #? ##?#??#??##? | | ?????????????????? ?#?# #?T """ #?#?#?#????? | | ?????????????????# #??# # ? """ #######?#?#? | | ???????????? ????# #??# # *! """ # ?????? | | ?????????????????# #??# # *! ?+ #??##?? | | ?????????????????# #?## #?! ?? < #?###?? | | ???? ? #?????????# #??# #?? ?? #????? | | ???# ??######### #?## #??? ?# ##???#?? | | ???# ###"""T"""# #### ##?###+##### #?##???? | | ???? ###?# + #?????## | | ???? #?### # ######## | | ?? ?? ##??# """ #^ #![[ | | ?????? ###+######## """ / #[ ** | | ???? """ """ """ !# ## """ # # "=" | | ???# """ """ """ # ## # */*"Y" | | ???# """ """ """ # #####+### # """ | | ???# # ##?# ### ######## | +----------------------------------------------------+ Best States ------------- Heat Dissipation 28 Energy Generation 10 Energy Capacity 250 Matter Stores 300 Matter Capacity 300 Sight Range 16 Terrain Scan Range 16 Terrain Scan Density 60 Resistance: KI 20 Resistance: TH 20 Resistance: EX 20 Resistance: EM 20 Resistance: I 20 Resistance: S 20 Resistance: P 20 Evasion (%) 62 Offensive Hacking 10 Item Schematics ----------------- None Robot Schematics ------------------ None Fabricated ------------ Nothing Alien Tech Used ----------------- None Achievements -------------- None Challenges ------------ None Game ------ Seed BiometalDisposableTreads Manual? 0 Play Time 00:28:01 Cumulative 15.7 hours Start 2020.10.22 @ 15:46:59 End 2020.10.22 @ 16:17:40 Sessions 1 Manual Loads 0 Difficulty Adventurer Special Mode None Game No. 19 Rogue 17 Adventurer 2 Explorer 0 Win Type - Total 0 Types 0/0/0/0/0/0/0/0/0 Lore% 22 Gallery% 26 Achievement% 13 Wizard Run 0 Options --------- ASCII 0 Keyboard 0 Movement Arrows Keybinds 0 Fullscreen 1 Font 18/SmallcapsGlow Map View 76x50 Tactical HUD 0 Map Filters NONE Filters NONE Steam 1 RUN: 1e47daae-dfa3-489c-8c41-f34cee893578